bitfinex/quotes_SOLUSD_20251006
["timestamp","ask_amount","ask_price","bid_price","bid_amount"]
[1759714506545,20.8,231.33,231.27,4.99757882]
[1759714506741,0.61,231.35,231.31,4.99757882]
[1759714506742,31.38,231.35,231.31,4.99757882]
[1759714507050,31.38,231.35,231.32,0.66]
[1759714507352,31.38,231.35,231.31,4.99757882]
[1759714507550,31.38,231.35,231.32,0.66]
[1759714507760,31.38,231.35,231.33,5.65757882]
[1759714508255,31.38,231.35,231.34,0.66]
[1759714509441,35.2702654,231.35,231.31,5.65757882]
[1759714510753,31.38,231.35,231.33,4.99757882]
[1759714511738,31.38,231.35,231.33,5.65757882]
[1759714511939,31.38,231.35,231.34,0.66]
[1759714512245,31.38,231.35,231.33,4.99757882]
[1759714512566,31.38,231.35,231.33,5.65757882]
[1759714512941,31.38,231.35,231.34,0.66]
[1759714513143,31.34,231.37,231.34,3.92015894]
[1759714513347,3.88936905,231.4,231.35,0.66]
[1759714513549,31.32,231.39,231.36,3.92015894]
[1759714513940,0.61,231.38,231.29,0.66]
[1759714514142,0.61,231.38,231.32,3.26015894]
[1759714514363,31.32,231.39,231.32,3.26015894]
[1759714514865,21.41,231.41,231.34,3.26015894]
[1759714514866,20.8,231.41,231.34,3.26015894]
[1759714515159,20.8,231.41,231.36,3.26015894]
[1759714515160,31.3,231.4,231.36,3.26015894]
[1759714515543,31.3,231.4,231.35,0.66]
[1759714515752,31.3,231.4,231.35,3.92015894]
[1759714516349,3.88953714,231.39,231.35,3.92015894]
[1759714517148,3.88953714,231.39,231.35,2.01616702]
[1759714518050,0.61,231.38,231.3,0.7]
[1759714518261,3.88953714,231.39,231.3,0.7]
[1759714518566,13.61338,231.39,231.3,0.7]
[1759714518874,0.61,231.38,231.3,2.05616702]
[1759714519873,1.35616702,231.33,231.23,0.7]
[1759714520079,31.87,231.32,231.23,2.05616702]
[1759714520578,3.89088236,231.31,231.23,0.7]
[1759714520884,1.96616702,231.3,231.2,0.7]
[1759714521045,20.8,231.24,231.08,10.87647521]
[1759714521381,10.87647521,231.27,231.11,0.7]
[1759714521382,22.15616702,231.2,231.11,0.7]
[1759714521541,22.15616702,231.2,231.07,0.2]
[1759714521542,1.35616702,231.18,231.07,0.9]
[1759714521746,31.97,231.19,231.07,0.9]
[1759714521747,20.8,231.16,231.07,2.25616702]
[1759714522170,1.96616702,231.15,231.07,1.55616702]
[1759714522345,20.8,231.11,231.07,0.2]
[1759714522545,5.25075354,231.09,231.07,0.2]
[1759714522776,31.4,231.08,231.07,0.2]
[1759714523781,35.2790287,231.08,231.07,0.2]
[1759714526379,46.15550391,231.08,231.07,0.2]
[1759714529273,46.15550391,231.08,230.89,0.7]
[1759714529274,20.8,231.0,230.89,0.7]
[1759714529458,3.2690287,230.95,230.89,0.7]
[1759714529776,31.46,230.94,230.89,3.9690287]
[1759714529962,31.46,230.93,230.89,3.2690287]
[1759714530170,31.48,230.92,230.9,0.7]
[1759714530386,31.48,230.92,230.91,0.7]
[1759714530575,31.48,230.92,230.91,3.9690287]
[1759714530976,20.8,231.0,230.91,3.9690287]
[1759714531183,3.894686,231.09,230.92,0.7]
[1759714531485,3.2690287,231.06,230.99,3.2690287]
[1759714531992,20.8,231.05,230.97,3.9690287]
[1759714532279,3.2690287,231.03,230.97,0.7]
[1759714532470,3.2690287,231.03,230.97,3.9690287]
[1759714532873,3.2690287,230.99,230.87,4.33138843]
[1759714533065,34.7490287,230.98,230.91,0.7]
[1759714533274,31.48,230.98,230.92,3.2690287]
[1759714533478,34.7490287,230.98,230.92,3.2690287]
[1759714533672,31.48,230.98,230.92,3.2690287]
[1759714534162,31.48,230.98,230.93,0.68]
[1759714534474,31.48,230.98,230.94,0.68]
[1759714534663,34.7490287,230.98,230.92,3.2690287]
[1759714534857,34.7490287,230.98,230.91,3.9490287]
[1759714535261,3.2690287,230.98,230.91,3.9490287]
[1759714535562,31.46,230.97,230.92,3.2690287]
[1759714535761,24.0690287,231.0,230.93,0.68]
[1759714536070,24.0690287,231.0,230.81,10.87647521]
[1759714536071,34.7290287,230.99,230.92,3.2690287]
[1759714536271,3.2690287,230.98,230.91,3.2690287]
[1759714536466,31.46,230.99,230.92,3.9490287]
[1759714536671,20.8,230.96,230.77,0.62080978]
[1759714536875,24.0690287,230.97,230.9,3.2690287]
[1759714537076,31.44,230.96,230.89,0.68]
[1759714537790,20.8,230.92,230.86,0.68]
[1759714537989,31.46,230.91,230.86,0.68]
[1759714538368,31.46,230.91,230.87,0.68]
[1759714538684,31.46,230.9,230.87,0.68]
[1759714539265,4.50696772,230.95,230.87,0.68]
[1759714539465,20.8,230.91,230.87,0.68]
[1759714539762,31.46,230.9,230.85,3.2690287]
[1759714539962,31.46,230.9,230.79,10.83193494]
[1759714539963,31.44,230.89,230.88,0.68]
[1759714540199,31.44,230.89,230.8,10.87647521]
[1759714540376,31.44,230.89,230.85,3.9490287]
[1759714540577,3.89668165,230.97,230.87,3.2690287]
[1759714540578,20.8,230.97,230.87,3.2690287]
[1759714540768,20.8,230.93,230.88,0.68]
[1759714540972,31.44,230.92,230.88,0.68]
[1759714541595,31.44,230.92,230.85,0.68]
[1759714541776,31.44,230.92,230.88,0.68]
[1759714541974,3.2690287,230.94,230.88,0.68]
[1759714542278,31.44,230.91,230.88,0.68]
[1759714543183,31.42,230.9,230.88,0.68]
[1759714543386,31.42,230.9,230.87,3.2690287]
[1759714543583,31.42,230.9,230.88,0.68]
[1759714543777,31.42,230.9,230.87,3.2690287]
[1759714543986,31.42,230.9,230.86,3.2690287]
[1759714544181,31.42,230.9,230.87,0.68]
[1759714544491,31.42,230.9,230.87,3.2690287]
[1759714544691,31.42,230.9,230.8,10.87647521]
[1759714544692,31.42,230.9,230.85,0.68]
[1759714544869,31.42,230.9,230.86,0.68]
[1759714545193,34.6890287,230.9,230.83,3.9490287]
[1759714545575,34.6890287,230.9,230.83,0.68]
[1759714545796,31.42,230.9,230.83,3.9490287]
[1759714545999,31.42,230.9,230.78,21.70930301]
[1759714546180,31.42,230.9,230.84,3.9490287]
[1759714547383,31.42,230.9,230.84,5.01197646]
[1759714547581,31.42,230.9,230.85,3.2690287]
[1759714547896,31.42,230.9,230.85,3.9690287]
[1759714548478,31.42,230.9,230.85,0.7]
[1759714548888,31.42,230.9,230.86,3.9690287]
[1759714549297,31.42,230.9,230.85,3.2690287]
[1759714549593,31.42,230.9,230.83,0.7]
[1759714549794,31.42,230.9,230.85,3.2690287]
[1759714550308,31.42,230.9,230.85,3.9690287]
[1759714550481,31.42,230.9,230.86,3.2690287]
[1759714551072,20.8,230.94,230.87,3.9690287]
[1759714551271,31.34,230.93,230.91,3.2690287]
[1759714551572,31.34,230.92,230.88,0.7]
[1759714551779,31.34,230.91,230.89,3.9690287]
[1759714551994,31.34,230.91,230.89,0.7]
[1759714552199,31.34,230.91,230.89,3.9690287]
[1759714552575,31.34,230.91,230.9,3.9690287]
[1759714553086,31.34,230.91,230.9,0.7]
[1759714553299,31.34,230.91,230.9,3.9690287]
[1759714553597,0.61,231.01,230.9,8.29990786]
[1759714553781,20.8,230.97,230.95,3.2690287]
[1759714554099,31.34,230.96,230.93,3.2690287]
[1759714554287,31.34,230.96,230.91,0.7]
[1759714554596,31.34,230.96,230.91,3.2690287]
[1759714554798,31.34,230.96,230.93,3.2690287]
[1759714555403,31.34,230.96,230.92,3.9690287]
[1759714555595,31.34,230.96,230.93,3.9690287]
[1759714556295,13.58000503,231.03,230.95,3.2690287]
[1759714556497,13.58000503,231.03,230.97,3.2690287]
[1759714556498,12.97000503,231.03,230.97,3.2690287]
[1759714556696,31.32,231.02,230.98,3.2690287]
[1759714557383,31.32,231.02,230.97,3.2690287]
[1759714557595,31.32,231.02,230.97,3.9690287]
[1759714558277,3.8790287,231.08,231.0,3.2690287]
[1759714558481,3.8790287,231.08,231.01,3.2690287]
[1759714558482,31.32,231.07,231.01,3.2690287]
[1759714558692,20.8,231.04,231.0,3.2690287]
[1759714558878,31.32,231.03,231.0,3.2690287]
[1759714559474,20.8,231.04,231.0,3.2690287]
[1759714559783,31.3,231.03,231.0,3.2690287]
[1759714560204,20.8,231.0,230.91,0.7]
[1759714560508,20.8,231.0,230.87,4.33143538]
[1759714560509,20.8,230.96,230.87,4.33143538]
[1759714560809,31.3,230.95,230.94,3.2690287]
[1759714561102,20.8,230.98,230.94,3.9690287]
[1759714561103,31.32,230.98,230.94,3.9690287]
[1759714561291,31.32,230.98,230.96,3.2690287]
[1759714561497,31.32,230.98,230.95,3.2690287]
[1759714561690,31.32,230.98,230.96,3.2690287]
[1759714561889,31.32,230.98,230.95,3.2690287]
[1759714562200,31.32,230.98,230.97,3.2690287]
[1759714562398,31.32,230.98,230.97,3.9690287]
[1759714562785,31.32,230.98,230.93,5.03029479]
[1759714563018,31.32,230.98,230.94,0.7]
[1759714563203,31.32,230.98,230.97,3.2690287]
[1759714563706,31.32,230.98,230.97,3.9690287]
[1759714564295,31.3,231.0,230.97,3.9690287]
[1759714564490,31.3,231.0,230.99,3.2690287]
[1759714564691,31.3,231.0,230.98,3.2690287]
[1759714564876,31.3,231.0,230.97,3.2690287]
[1759714565083,0.61,231.03,230.97,3.2690287]
[1759714565315,31.3,231.02,230.97,3.2690287]
[1759714565486,31.3,231.02,230.98,3.2690287]
[1759714565979,0.61,231.01,230.97,3.2690287]
[1759714566181,0.61,231.01,230.96,3.2690287]
[1759714566386,0.61,231.0,230.94,3.2690287]
[1759714567006,31.3,231.02,230.97,3.2690287]
[1759714567301,31.91,231.02,230.97,3.2690287]
[1759714567607,0.61,231.01,230.97,3.2690287]
[1759714568880,20.8,231.05,231.0,3.2690287]
[1759714569076,20.8,231.01,230.99,3.2690287]
[1759714569306,31.28,231.0,230.98,3.2690287]
[1759714569485,31.28,231.0,230.99,3.2690287]
[1759714569805,31.28,231.0,230.98,3.2690287]
[1759714570980,31.28,231.0,230.98,1.36093548]
[1759714572515,31.89,231.0,230.89,10.82737119]
[1759714572690,31.89,231.0,230.95,1.36093548]
[1759714572890,31.28,231.0,230.95,2.06093548]
[1759714573092,31.28,231.0,230.94,1.36093548]
[1759714573291,31.89,231.0,230.94,1.36093548]
[1759714573792,31.28,231.0,230.95,1.36093548]
[1759714574011,10.81945766,231.07,230.99,1.36093548]
[1759714574012,20.8,231.05,230.99,1.36093548]
[1759714574182,20.8,231.05,230.88,5.44374192]
[1759714574183,31.87,231.04,230.92,0.7]
[1759714574503,20.8,231.01,230.96,1.36093548]
[1759714574711,21.6961733,231.07,231.0,1.36093548]
[1759714574712,0.61,231.07,231.0,1.36093548]
[1759714574887,0.61,231.07,230.92,15.15659439]
[1759714574888,31.26,231.06,230.93,10.87647521]
[1759714575217,33.99619225,231.06,230.97,0.7]
[1759714575388,20.8,231.03,231.01,2.12619225]
[1759714575591,31.28,231.02,231.01,2.12619225]
[1759714575905,31.28,231.02,231.0,2.12619225]
[1759714578017,0.61,231.01,230.94,0.7]
[1759714578225,0.61,231.01,230.95,2.12619225]
[1759714578520,31.26,231.0,230.97,2.12619225]
[1759714578727,31.26,230.99,230.97,2.82619225]
[1759714579310,31.26,230.99,230.9,10.82719792]
[1759714579514,31.26,230.99,230.95,2.12619225]
[1759714579812,31.26,230.99,230.94,2.82619225]
[1759714580187,31.87,230.99,230.93,2.12619225]
[1759714580506,31.87,230.99,230.88,2.82619225]
[1759714580507,27.25607954,230.96,230.88,2.82619225]
[1759714580714,2.12619225,230.94,230.88,0.7]
[1759714580893,33.99619225,230.95,230.88,2.82619225]
[1759714581601,33.99619225,230.95,230.88,0.7]
[1759714581926,33.99619225,230.95,230.88,2.82619225]
[1759714582216,31.87,230.95,230.88,2.82619225]
[1759714582397,31.87,230.95,230.88,0.7]
[1759714582593,31.87,230.95,230.88,2.82619225]
[1759714582896,31.87,230.95,230.89,2.12619225]
[1759714583507,31.26,230.95,230.9,2.12619225]
[1759714583708,20.8,230.99,230.94,2.12619225]
[1759714583913,31.26,230.98,230.95,2.12619225]
[1759714584795,0.61,230.97,230.88,0.7]
[1759714584994,0.61,230.97,230.91,2.12619225]
[1759714585528,31.26,230.98,230.93,2.12619225]
[1759714585723,52.06,230.97,230.91,0.7]
[1759714585913,52.06,230.97,230.93,2.12619225]
[1759714586111,52.67,230.97,230.92,2.12619225]
[1759714586313,31.26,230.96,230.92,2.12619225]
[1759714586523,31.26,230.96,230.93,2.12619225]
[1759714587097,31.26,230.96,230.9,0.7]
[1759714587320,31.26,230.96,230.93,2.12619225]
[1759714587724,31.26,230.96,230.92,2.12619225]
[1759714588212,31.26,230.96,230.93,2.12619225]
[1759714590297,20.8,230.98,230.93,2.12619225]
[1759714590499,56.95537878,231.23,230.97,2.12619225]
[1759714590500,20.8,231.04,230.97,2.12619225]
[1759714590713,20.8,231.04,230.89,10.82746155]
[1759714590714,20.8,231.01,231.0,2.12619225]
[1759714591028,20.8,231.0,230.99,2.12619225]
[1759714591225,20.8,231.0,230.99,2.82619225]
[1759714591423,52.06,231.0,230.99,2.82619225]
[1759714591599,31.26,231.0,230.99,2.82619225]
[1759714591804,31.26,231.0,230.99,2.12619225]
[1759714592025,31.26,231.0,230.97,0.7]
[1759714592227,31.26,231.0,230.99,2.12619225]
[1759714592613,31.26,231.0,230.99,2.82619225]
[1759714592803,31.26,231.0,230.99,2.12619225]
[1759714593827,31.26,231.0,230.99,7.16538398]
[1759714593999,31.26,231.0,230.99,2.83619225]
[1759714594199,31.26,231.0,230.99,2.12619225]
[1759714594619,31.26,231.0,230.99,2.83619225]
[1759714595212,0.61,231.06,230.99,2.83619225]
[1759714595408,31.26,231.05,231.01,2.12619225]
[1759714595609,27.25370951,231.08,231.01,2.12619225]
[1759714595610,31.26,231.04,231.01,2.12619225]
[1759714595809,31.26,231.04,231.02,2.12619225]
[1759714596721,31.26,231.04,231.03,2.12619225]
[1759714597132,31.26,231.04,231.02,2.83619225]
[1759714598716,20.8,231.07,231.03,2.83619225]
[1759714598919,52.06,231.07,231.04,2.83619225]
[1759714599414,52.06,231.07,231.04,2.12619225]
[1759714599612,52.06,231.07,231.02,5.03859065]
[1759714599813,52.06,231.07,231.04,2.12619225]
[1759714603236,52.67,231.07,230.99,0.71]
[1759714603532,2.12619225,231.05,230.97,0.71]
[1759714603831,2.12619225,231.03,230.95,0.71]
[1759714604045,2.12619225,231.0,230.93,2.12619225]
[1759714604334,33.99619225,230.99,230.92,2.12619225]
[1759714604537,31.26,230.98,230.87,10.87647521]
[1759714604838,31.26,230.98,230.91,2.12619225]
[1759714605936,31.26,230.98,230.92,2.12619225]
[1759714606127,2.73619225,231.02,230.94,2.12619225]
[1759714606330,0.61,231.02,230.96,2.12619225]
[1759714606626,31.24,231.01,230.96,2.12619225]
[1759714607237,31.24,231.01,230.98,2.12619225]
[1759714608137,2.73619225,231.05,230.98,2.12619225]
[1759714608326,31.24,231.04,230.98,2.12619225]
[1759714609136,17.88050059,231.13,231.02,2.12619225]
[1759714609137,2.64055615,231.13,231.02,2.12619225]
[1759714609334,2.73619225,231.11,231.04,2.12619225]
[1759714609513,31.24,231.1,231.04,2.12619225]
[1759714610425,31.24,231.09,231.04,2.12619225]
[1759714610940,31.85,231.09,231.04,2.12619225]
[1759714611344,0.61,231.09,231.04,2.12619225]
[1759714611639,31.24,231.08,231.04,2.12619225]
[1759714612241,31.24,231.08,231.02,0.72]
[1759714612423,31.24,231.08,231.03,2.12619225]
[1759714612745,31.85,231.08,231.03,2.12619225]
[1759714612920,31.24,231.08,231.05,2.12619225]
[1759714614127,31.24,231.08,230.96,15.15393186]
[1759714614128,0.61,231.07,230.96,0.72]
[1759714614335,2.12619225,231.06,230.96,0.72]
[1759714614518,2.12619225,231.04,230.97,2.12619225]
[1759714614721,2.12619225,231.04,230.95,2.12619225]
[1759714614722,31.85,231.03,230.95,2.12619225]
[1759714615049,17.3075428,231.08,230.9,23.69621689]
[1759714615050,0.61,231.07,231.0,2.12619225]
[1759714615244,0.61,231.07,231.02,2.12619225]
[1759714615420,31.85,231.09,231.02,2.84619225]
[1759714615950,36.17732095,231.09,231.02,2.84619225]
[1759714616149,36.17732095,231.09,231.02,2.12619225]
[1759714616644,36.17732095,231.09,231.03,2.12619225]
[1759714618141,2.73619225,231.08,231.02,2.12619225]
[1759714618440,2.12619225,231.06,231.0,2.12619225]
[1759714618641,2.12619225,231.06,230.96,5.0497191]
[1759714618642,20.8,231.06,231.04,2.12619225]
[1759714618945,20.8,231.06,231.03,2.12619225]
[1759714619723,20.8,231.06,230.98,0.72]
[1759714620041,0.61,231.05,231.01,2.12619225]
[1759714620246,31.24,231.04,231.01,2.12619225]
[1759714620949,0.61,231.03,230.95,0.72]
[1759714621129,20.8,231.01,230.9,13.12849586]
[1759714621328,21.41,231.01,230.95,2.12619225]
[1759714621558,23.53619225,231.01,230.95,2.12619225]
[1759714621865,27.86518283,231.01,230.92,0.72]
[1759714622029,23.53619225,231.01,230.95,2.12619225]
[1759714622231,21.41,231.01,230.96,2.12619225]
[1759714622430,20.8,230.98,230.94,2.84619225]
[1759714622628,52.04,230.98,230.94,2.84619225]
[1759714622855,0.61,230.97,230.79,21.66390995]
[1759714623142,54.16619225,230.98,230.89,2.12619225]
[1759714623143,2.73619225,230.96,230.89,2.12619225]
[1759714623448,0.61,230.95,230.89,2.12619225]
[1759714623844,4.93997552,230.95,230.89,2.12619225]
[1759714624041,4.93997552,230.95,230.87,2.84619225]
[1759714624042,7.06616777,230.95,230.87,2.84619225]
[1759714624346,20.8,230.92,230.85,0.72]
[1759714624546,31.24,230.91,230.87,2.12619225]
[1759714624732,31.24,230.91,230.88,0.72]
[1759714624935,31.24,230.95,230.9,2.12619225]
[1759714625142,31.24,230.95,230.93,2.12619225]
[1759714625325,20.8,230.99,230.94,0.72]
[1759714625524,22.12619225,231.14,230.97,2.12619225]
[1759714625525,31.24,231.03,230.97,2.12619225]
[1759714625746,31.24,231.03,231.01,2.12619225]
[1759714626129,31.24,231.03,230.99,2.12619225]
[1759714626329,31.24,231.03,230.99,2.84619225]
[1759714626525,31.24,231.03,230.99,2.12619225]
[1759714626751,0.61,231.09,231.01,2.12619225]
[1759714627046,31.24,231.08,231.02,5.00993557]
[1759714627852,52.04,231.07,231.02,5.00993557]
[1759714628030,52.04,231.07,231.02,5.72993557]
[1759714628231,20.8,231.07,231.02,5.72993557]
[1759714628536,31.24,231.07,231.04,5.00993557]
[1759714628859,31.24,231.07,231.02,5.00993557]
[1759714629742,31.24,231.07,231.03,0.72]
[1759714630655,20.8,231.09,230.94,15.88641078]
[1759714630656,0.61,231.14,231.06,5.00993557]
[1759714630854,31.24,231.13,231.06,0.72]
[1759714631154,20.8,231.1,231.07,5.00993557]
[1759714631342,31.24,231.13,231.07,5.72993557]
[1759714631733,31.24,231.13,231.09,5.00993557]
[1759714631940,31.24,231.13,231.05,0.72]
[1759714632248,52.65,231.13,231.07,5.00993557]
[1759714633448,52.04,231.13,231.09,5.00993557]
[1759714633861,5.00993557,231.11,231.02,0.72]
[1759714634159,5.00993557,231.11,231.02,5.72993557]
[1759714634160,0.61,231.1,231.02,5.72993557]
[1759714635043,3.88000416,231.1,231.02,3.99000416]
[1759714635242,3.27000416,231.1,231.03,0.72]
[1759714635539,3.27000416,231.1,231.04,3.27000416]
[1759714636754,20.8,231.11,231.04,3.27000416]
[1759714638865,20.8,231.11,231.06,3.27000416]
[1759714639065,134.2,231.18,231.08,3.27000416]
[1759714639066,3.27000416,231.16,231.08,3.27000416]
[1759714639237,35.10000416,231.15,231.08,3.27000416]
[1759714639437,20.8,231.12,231.06,3.95000416]
[1759714639641,20.8,231.12,231.03,0.68]
[1759714639947,20.8,231.12,231.05,3.27000416]
[1759714640371,20.8,231.12,231.07,3.27000416]
[1759714640562,20.8,231.12,231.08,0.68]
[1759714640857,0.61,231.19,231.11,3.27000416]
[1759714641162,31.22,231.18,231.11,3.95000416]
[1759714641355,31.22,231.18,231.13,3.27000416]
[1759714641564,31.22,231.18,231.16,3.27000416]
[1759714642262,31.22,231.18,231.17,0.68]
[1759714642438,0.61,231.27,231.17,0.68]
[1759714642643,0.61,231.27,231.2,3.27000416]
[1759714642644,31.22,231.26,231.2,3.27000416]
[1759714642847,20.8,231.23,231.18,3.27000416]
[1759714643048,20.8,231.23,231.14,0.68]
[1759714643240,21.41,231.23,231.15,3.27000416]
[1759714643444,3.88000416,231.23,231.15,3.27000416]
[1759714643962,24.68000416,231.23,231.15,3.27000416]
[1759714644543,4.32488539,231.22,231.14,0.68]
[1759714644761,31.22,231.21,231.14,3.95000416]
[1759714645562,20.8,231.19,231.18,3.27000416]
[1759714645764,31.22,231.21,231.18,3.95000416]
[1759714646138,31.22,231.21,231.2,3.27000416]
[1759714646336,3.37000416,231.31,231.2,3.95000416]
[1759714646555,3.37000416,231.31,231.23,3.27000416]
[1759714646556,31.83,231.3,231.23,3.27000416]
[1759714646863,31.83,231.3,231.25,3.27000416]
[1759714646864,31.22,231.3,231.25,3.27000416]
[1759714647067,31.22,231.3,231.26,0.68]
[1759714647268,31.22,231.3,231.29,3.27000416]
[1759714648842,31.22,231.3,231.26,3.27000416]
[1759714649561,31.22,231.3,231.26,3.95000416]
[1759714649767,31.22,231.3,231.27,0.68]
[1759714649968,31.22,231.3,231.28,3.27000416]
[1759714650268,31.22,231.3,231.28,3.95000416]
[1759714650468,31.22,231.3,231.29,0.68]
[1759714650641,0.1,231.31,231.29,0.68]
[1759714650844,0.1,231.31,231.28,4.32374576]
[1759714651164,0.1,231.31,231.3,3.95000416]
[1759714651553,0.68,231.5,231.35,10.87647521]
[1759714651754,0.68,231.5,231.44,3.27000416]
[1759714651944,1.73088989,231.53,231.44,3.27000416]
[1759714652148,0.68,231.51,231.44,3.27000416]
[1759714652358,0.68,231.51,231.42,3.95000416]
[1759714652359,34.61000416,231.5,231.42,3.95000416]
[1759714653258,31.34,231.5,231.42,3.95000416]
[1759714653459,34.61000416,231.5,231.42,3.95000416]
[1759714654061,34.61000416,231.5,231.43,3.27000416]
[1759714654355,31.34,231.5,231.43,3.27000416]
[1759714654567,34.61000416,231.5,231.43,3.96000416]
[1759714654951,34.61000416,231.5,231.41,3.27000416]
[1759714654952,4.04000416,231.48,231.41,3.27000416]
[1759714655877,24.07000416,231.47,231.39,0.69]
[1759714656076,24.07000416,231.47,231.36,10.87647521]
[1759714656077,3.27000416,231.44,231.36,10.87647521]
[1759714656274,20.8,231.41,231.36,3.27000416]
[1759714656456,20.8,231.41,231.36,3.96000416]
[1759714656671,20.8,231.41,231.36,0.69]
[1759714657192,20.8,231.41,231.33,4.32269751]
[1759714657193,20.8,231.41,231.33,10.87647521]
[1759714657391,20.8,231.41,231.12,21.63367462]
[1759714657392,3.27000416,231.39,231.32,3.96000416]
[1759714657699,3.27000416,231.37,231.3,0.69]
[1759714657985,25.12143707,231.41,231.29,3.27000416]
[1759714657986,20.8,231.35,231.29,3.27000416]
[1759714658372,20.8,231.35,231.27,0.69]
[1759714658373,3.27000416,231.34,231.27,0.69]
[1759714658579,24.07000416,231.35,231.28,3.27000416]
[1759714658776,20.8,231.35,231.31,3.27000416]
[1759714658973,20.8,231.35,231.3,3.27000416]
[1759714659278,20.8,231.35,231.29,3.27000416]
[1759714661170,3.27000416,231.31,231.22,0.69]
[1759714661492,3.27000416,231.31,231.24,3.27000416]
[1759714661696,31.28,231.32,231.27,3.27000416]
[1759714661993,31.28,231.32,231.27,3.96000416]
[1759714662663,31.28,231.32,231.28,0.69]
[1759714662990,24.74000416,231.37,231.29,3.96000416]
[1759714663168,0.67,231.4,231.3,0.69]
[1759714663487,31.26,231.39,231.34,3.27000416]
[1759714663801,31.26,231.39,231.27,0.69]
[1759714663802,24.07000416,231.36,231.27,0.69]
[1759714663975,24.07000416,231.36,231.27,3.96000416]
[1759714664286,24.07000416,231.36,231.28,3.27000416]
[1759714664488,20.8,231.36,231.29,3.27000416]
[1759714664859,24.74000416,231.36,231.29,3.27000416]
[1759714665062,24.74000416,231.36,231.27,0.69]
[1759714665063,24.74000416,231.36,231.28,3.27000416]
[1759714665284,3.94000416,231.36,231.28,3.27000416]
[1759714665471,20.8,231.35,231.28,3.27000416]
[1759714665866,3.94000416,231.34,231.27,3.27000416]
[1759714666071,20.8,231.3,231.23,0.69]
[1759714666285,20.8,231.3,231.24,3.27000416]
[1759714667685,9.68788151,231.71,231.24,4.32450409]
[1759714667908,39.24449386,232.14,231.24,4.32450409]
[1759714667909,0.82,231.48,231.25,0.66]
[1759714668097,0.1,231.48,231.4,3.27000416]
[1759714668391,0.72,231.47,231.4,10.87647521]
[1759714668693,3.99000416,231.46,231.39,3.27000416]
[1759714668886,0.72,231.45,231.38,3.27000416]
[1759714669188,0.72,231.44,231.38,3.27000416]
[1759714669770,0.72,231.44,231.39,3.27000416]
[1759714671065,20.8,231.47,231.42,3.27000416]
[1759714671266,21.52,231.47,231.42,3.27000416]
[1759714671688,0.72,231.47,231.42,3.27000416]
[1759714672082,20.9,231.48,231.44,3.27000416]
[1759714672270,0.1,231.48,231.44,3.27000416]
[1759714672586,20.9,231.48,231.44,3.27000416]
[1759714672788,21.62,231.48,231.44,3.27000416]
[1759714673689,20.9,231.48,231.4,10.87647521]
[1759714673872,0.72,231.47,231.43,3.27000416]
[1759714674275,20.9,231.48,231.44,3.27000416]
[1759714674790,21.62,231.48,231.44,3.27000416]
[1759714676381,20.9,231.48,231.44,3.93000416]
[1759714677692,20.9,231.48,231.44,3.27000416]
[1759714678296,21.62,231.48,231.44,3.27000416]
[1759714678600,0.1,231.48,231.45,0.66]
[1759714678906,0.1,231.48,231.47,14.14647937]
[1759714679277,0.1,231.48,231.47,11.53647521]
[1759714679784,0.1,231.48,231.47,3.27000416]
[1759714679973,0.1,231.48,231.45,11.53647521]
[1759714680298,0.1,231.48,231.42,10.87647521]
[1759714680481,0.1,231.48,231.47,3.27000416]
[1759714681704,0.82,231.48,231.44,3.27000416]